bitfinex/quotes_BTCUSD_20220306
["timestamp","ask_amount","ask_price","bid_price","bid_amount"]
[1646543437140,0.002,39526.0,39515.0,0.3]
[1646543437141,0.002,39526.0,39515.0,0.0506]
[1646543437341,0.002,39526.0,39516.0,0.380392]
[1646543437543,0.20747683,39521.0,39517.0,0.20610938]
[1646543437740,0.20747683,39521.0,39518.0,0.380392]
[1646543438343,0.18824178,39524.0,39518.0,0.380392]
[1646543438643,0.001,39522.0,39515.0,0.21209047]
[1646543439141,0.001,39522.0,39516.0,0.380392]
[1646543439382,0.001,39522.0,39516.0,0.57791373]
[1646543439782,0.18824178,39524.0,39516.0,0.57791373]
[1646543439983,0.18824178,39524.0,39516.0,0.19752173]
[1646543440383,0.17779034,39521.0,39517.0,0.380392]
[1646543440585,0.18824178,39524.0,39516.0,0.19752173]
[1646543440983,0.18824178,39524.0,39517.0,0.380392]
[1646543441184,0.18824178,39524.0,39516.0,0.19752173]
[1646543441386,0.18824178,39524.0,39517.0,0.380392]
[1646543441584,0.18824178,39524.0,39516.0,0.19752173]
[1646543441786,0.18824178,39524.0,39517.0,0.380392]
[1646543441985,0.18824178,39524.0,39515.0,0.21209047]
[1646543442186,0.18824178,39524.0,39516.0,0.380392]
[1646543442386,0.18824178,39524.0,39517.0,0.380392]
[1646543442586,0.18824178,39524.0,39516.0,0.001]
[1646543442793,0.16262307,39522.0,39516.0,0.001]
[1646543442986,0.18824178,39524.0,39517.0,0.380392]
[1646543443235,0.18824178,39524.0,39516.0,0.001]
[1646543443436,0.35583645,39528.0,39518.0,0.380392]
[1646543443737,0.35583645,39528.0,39516.0,0.301]
[1646543443937,0.35583645,39528.0,39516.0,0.3]
[1646543444140,0.35583645,39528.0,39520.0,0.17260925]
[1646543445238,0.19502296,39526.0,39520.0,0.17260925]
[1646543445441,0.54430089,39528.0,39520.0,0.17260925]
[1646543445442,0.54430089,39528.0,39521.0,0.19711235]
[1646543445640,0.35572283,39528.0,39521.0,0.19711235]
[1646543447781,0.2077261,39527.0,39521.0,0.19711235]
[1646543448382,0.55343826,39520.0,39514.0,0.31264]
[1646543448582,0.55343826,39520.0,39515.0,0.381392]
[1646543448782,0.55343826,39520.0,39516.0,0.3]
[1646543448981,0.55343826,39520.0,39517.0,0.380392]
[1646543449383,0.55343826,39520.0,39517.0,0.57002179]
[1646543449786,0.55343826,39520.0,39517.0,0.380392]
[1646543450736,0.55343826,39520.0,39517.0,0.58916209]
[1646543451134,0.55343826,39520.0,39517.0,0.375392]
[1646543451436,0.55343826,39520.0,39516.0,0.001]
[1646543451634,0.55343826,39520.0,39517.0,0.38066]
[1646543451838,0.55343826,39520.0,39513.0,0.00022094]
[1646543452034,0.17863701,39519.0,39514.0,0.59190676]
[1646543452435,0.55343826,39520.0,39516.0,0.18466012]
[1646543452736,0.55343826,39520.0,39517.0,0.38066]
[1646543453534,0.76609776,39520.0,39517.0,0.38066]
[1646543453735,0.55343826,39520.0,39518.0,0.38066]
[1646543454399,0.55343826,39520.0,39519.0,0.3]
[1646543454601,0.55343826,39520.0,39519.0,0.68066]
[1646543454803,0.55343826,39520.0,39519.0,0.54653341]
[1646543454998,0.55343826,39520.0,39519.0,0.38066]
[1646543457799,0.55343826,39520.0,39513.0,0.00322112]
[1646543457800,0.55343826,39520.0,39514.0,0.38066]
[1646543458233,0.19369269,39518.0,39514.0,0.38066]
[1646543459835,0.55343826,39520.0,39514.0,0.38066]
[1646543461239,0.1608568,39518.0,39514.0,0.38066]
[1646543462078,0.55343826,39520.0,39514.0,0.38066]
[1646543463077,0.19026616,39518.0,39514.0,0.38066]
[1646543463680,0.55343826,39520.0,39514.0,0.38066]
[1646543464877,0.73007964,39520.0,39516.0,0.20639587]
[1646543465077,0.73007964,39520.0,39514.0,0.38066]
[1646543466141,0.73007964,39520.0,39514.0,0.5314736]
[1646543466342,0.55343826,39520.0,39514.0,0.5314736]
[1646543467538,0.73379831,39520.0,39514.0,0.5314736]
[1646543467738,0.73379831,39520.0,39514.0,0.38066]
[1646543468742,0.55343826,39520.0,39514.0,0.38066]
[1646543469682,0.55343826,39520.0,39517.0,0.38066]
[1646543470788,0.001,39524.0,39518.0,1.3]
[1646543470983,0.001,39524.0,39519.0,0.38066]
[1646543471184,0.001,39524.0,39520.0,0.3506]
[1646543471381,0.001,39524.0,39521.0,0.53842845]
[1646543471583,0.001,39524.0,39522.0,0.53363649]
[1646543471782,0.001,39524.0,39523.0,0.68066]
[1646543471984,0.00022086,39529.0,39523.0,0.68066]
[1646543472784,0.1221,39532.0,39523.0,0.68066]
[1646543473139,9.383e-05,39529.0,39523.0,0.68066]
[1646543473339,9.383e-05,39529.0,39523.0,0.70594]
[1646543473640,9.383e-05,39529.0,39523.0,0.79307045]
[1646543473837,9.383e-05,39529.0,39525.0,0.38066]
[1646543474037,0.005,39532.0,39524.0,0.1]
[1646543474038,0.005,39532.0,39527.0,0.38066]
[1646543474242,9.383e-05,39529.0,39527.0,0.38066]
[1646543475236,0.001,39532.0,39527.0,0.38066]
[1646543475441,9.383e-05,39529.0,39527.0,0.38066]
[1646543476339,0.001,39532.0,39527.0,0.38066]
[1646543476743,0.00023629,39529.0,39527.0,0.38066]
[1646543477682,0.001,39532.0,39527.0,0.38066]
[1646543477884,0.00023629,39529.0,39527.0,0.38066]
[1646543478884,0.001,39532.0,39527.0,0.38066]
[1646543479088,0.00023629,39529.0,39527.0,0.38066]
[1646543479885,0.61098191,39528.0,39527.0,0.38066]
[1646543482744,0.00022845,39529.0,39528.0,1.38066]
[1646543482943,0.001,39532.0,39530.0,0.40594]
[1646543483144,0.0021,39534.0,39533.0,0.40594]
[1646543483145,0.001,39534.0,39533.0,0.40594]
[1646543483343,0.001,39534.0,39533.0,1.64014]
[1646543483743,0.001,39534.0,39533.0,2.04363483]
[1646543484787,0.0011,39538.0,39535.0,0.80888]
[1646543484988,0.041,39550.0,39534.0,1.0]
[1646543484989,0.0001,39541.0,39539.0,0.02528]
[1646543485186,0.0001,39541.0,39540.0,0.431094]
[1646543486283,0.0001,39541.0,39535.0,0.2141]
[1646543486284,0.12208072,39539.0,39535.0,0.2141]
[1646543486501,0.12208072,39539.0,39536.0,0.431058]
[1646543486690,0.12208072,39539.0,39533.0,0.08842145]
[1646543486691,0.12208072,39539.0,39535.0,0.003]
[1646543486885,0.19682072,39539.0,39535.0,0.003]
[1646543487088,0.2009785,39537.0,39535.0,0.003]
[1646543488334,0.2009785,39537.0,39529.0,0.06086974]
[1646543488634,0.18157778,39531.0,39530.0,0.380458]
[1646543489433,0.17820814,39538.0,39529.0,0.06086974]
[1646543489637,0.17647644,39532.0,39529.0,0.06086974]
[1646543489835,0.17647644,39532.0,39530.0,0.380458]
[1646543489836,0.17670032,39532.0,39530.0,0.380458]
[1646543490536,0.20130264,39531.0,39530.0,0.380458]
[1646543490741,0.20130264,39531.0,39529.0,0.06086974]
[1646543491239,0.380458,39530.0,39529.0,0.06086974]
[1646543491640,0.20130264,39531.0,39529.0,0.06086974]
[1646543492483,0.380458,39530.0,39529.0,0.06086974]
[1646543494183,0.20152318,39531.0,39529.0,0.06086974]
[1646543494384,0.20130264,39531.0,39529.0,0.06086974]
[1646543494788,0.380458,39530.0,39529.0,0.06086974]
[1646543497037,0.0002207,39531.0,39529.0,0.44132774]
[1646543498038,0.20494463,39535.0,39529.0,0.06086974]
[1646543498238,0.0002207,39532.0,39529.0,0.06086974]
[1646543499388,9.366e-05,39532.0,39529.0,0.06086974]
[1646543500194,9.366e-05,39532.0,39530.0,0.88900104]
[1646543500391,0.12208072,39539.0,39531.0,0.680458]
[1646543500589,0.12208072,39539.0,39532.0,0.380458]
[1646543500791,0.12208072,39539.0,39534.0,0.380458]
[1646543501192,0.12208072,39539.0,39536.0,0.380458]
[1646543501394,0.12208072,39539.0,39538.0,0.380458]
[1646543501790,0.12217438,39539.0,39538.0,0.380458]
[1646543502797,0.12208072,39539.0,39538.0,0.380458]
[1646543507197,0.04994672,39539.0,39538.0,0.380458]
[1646543507402,0.04994672,39539.0,39538.0,1.65282116]
[1646543508198,0.04994672,39539.0,39538.0,1.85064744]
[1646543508598,0.04994672,39539.0,39538.0,1.71248428]
[1646543508797,0.04994672,39539.0,39538.0,1.85064744]
[1646543509203,0.0001,39541.0,39538.0,1.85064744]
[1646543509204,0.00281582,39550.0,39539.0,1.80888]
[1646543509405,0.00281582,39550.0,39544.0,0.80888]
[1646543509601,0.0022,39556.0,39544.0,0.80888]
[1646543509602,0.0022,39556.0,39549.0,0.80888]
[1646543509801,0.0022,39556.0,39551.0,0.80888]
[1646543510003,0.0022,39556.0,39550.0,0.780458]
[1646543510004,0.0022,39559.0,39555.0,0.80888]
[1646543510202,0.0022,39559.0,39557.0,0.02528]
[1646543510203,0.0001,39559.0,39557.0,0.02528]
[1646543510402,0.0001,39559.0,39558.0,1.189338]
[1646543510635,0.0012,39566.0,39561.0,0.45]
[1646543510833,0.0012,39566.0,39560.0,0.380458]
[1646543510834,0.0012,39566.0,39562.0,0.431058]
[1646543511034,0.0012,39566.0,39563.0,1.1342]
[1646543511232,0.0012,39566.0,39564.0,0.380458]
[1646543511433,0.0012,39566.0,39565.0,0.3]
[1646543511633,0.0012,39566.0,39565.0,0.731058]
[1646543512236,0.0037,39568.0,39566.0,0.780458]
[1646543512434,0.0037,39568.0,39566.0,0.380458]
[1646543514786,0.0037,39568.0,39566.0,0.680458]
[1646543515183,0.0037,39568.0,39566.0,0.380458]
[1646543515585,0.0037,39568.0,39566.0,0.680458]
[1646543515984,0.0037,39568.0,39566.0,0.380458]
[1646543516388,0.1518503,39560.0,39558.0,0.380458]
[1646543516587,0.1518503,39560.0,39559.0,0.380458]
[1646543517188,0.31474671,39560.0,39559.0,0.380458]
[1646543517388,0.31474671,39560.0,39550.0,0.31263]
[1646543517588,0.31474671,39560.0,39548.0,0.01264]
[1646543517788,0.31474671,39560.0,39546.0,0.5612]
[1646543517789,0.31474671,39560.0,39547.0,0.01264]
[1646543518259,0.1518503,39560.0,39548.0,0.19165002]
[1646543518461,0.1518503,39560.0,39548.0,0.17707002]
[1646543518664,0.00021967,39555.0,39548.0,0.17707002]
[1646543519658,0.1518503,39560.0,39548.0,0.17707002]
[1646543519865,0.00021967,39553.0,39544.0,0.01264]
[1646543520559,0.00021967,39553.0,39547.0,0.7836]
[1646543520760,0.00021967,39553.0,39552.0,0.18332324]
[1646543520959,0.1518503,39560.0,39552.0,0.23392324]
[1646543521160,0.1518503,39560.0,39553.0,0.3]
[1646543521557,0.1518503,39560.0,39552.0,0.53392324]
[1646543521757,0.20796896,39559.0,39553.0,0.380458]
[1646543522288,0.00021989,39558.0,39553.0,0.380458]
[1646543522689,0.00021989,39558.0,39554.0,0.3]
[1646543522891,0.00021989,39558.0,39555.0,0.380458]
[1646543523092,0.00021989,39558.0,39557.0,0.380458]
[1646543523293,0.1518503,39560.0,39557.0,0.380458]
[1646543523492,0.00021989,39558.0,39557.0,0.380458]
[1646543524493,0.1518503,39560.0,39557.0,0.380458]
[1646543524792,0.00021989,39559.0,39557.0,0.380458]
[1646543525493,0.00021989,39559.0,39553.0,0.3]
[1646543525735,0.30850529,39560.0,39554.0,0.380458]
[1646543525736,0.1899538,39556.0,39554.0,0.380458]
[1646543525937,0.30872516,39560.0,39554.0,0.380458]
[1646543526135,0.30872516,39560.0,39552.0,0.004]
[1646543526936,0.30872516,39560.0,39551.0,0.002]
[1646543526937,0.30850529,39560.0,39551.0,0.002]
[1646543527141,0.00021988,39558.0,39552.0,0.380458]
[1646543528036,0.30850529,39560.0,39552.0,0.380458]
[1646543528037,0.18670708,39556.0,39552.0,0.380458]
[1646543528436,0.00021988,39557.0,39552.0,0.380458]
[1646543528836,0.00021988,39557.0,39553.0,0.380458]
[1646543529041,0.00021988,39557.0,39550.0,0.50073252]
[1646543529239,0.30850529,39560.0,39550.0,0.3]
[1646543529487,0.00021988,39557.0,39550.0,0.3]
[1646543529787,0.00021988,39557.0,39549.0,0.03921038]
[1646543529987,0.00021988,39557.0,39550.0,0.380458]
[1646543530186,0.00021988,39557.0,39550.0,0.675458]
[1646543530387,0.19430571,39555.0,39549.0,0.03721038]
[1646543530588,0.19430571,39555.0,39550.0,0.380359]
[1646543530789,0.1945256,39555.0,39550.0,0.375359]
[1646543531189,0.00021989,39555.0,39550.0,0.675359]
[1646543531590,0.30850529,39560.0,39550.0,0.675359]
[1646543531789,0.30850529,39560.0,39550.0,0.3]
[1646543531991,0.00021989,39554.0,39550.0,0.3]
[1646543532188,0.00021989,39554.0,39552.0,0.19116729]
[1646543532391,0.00021989,39554.0,39553.0,0.380352]
[1646543532793,0.16721958,39557.0,39553.0,0.380352]
[1646543532991,0.30850529,39560.0,39553.0,0.380352]
[1646543533238,0.00020488,39555.0,39552.0,0.380352]
[1646543534041,0.18309592,39556.0,39552.0,0.380352]
[1646543534245,0.00020488,39555.0,39552.0,0.380352]
[1646543535340,0.18309592,39556.0,39552.0,0.380352]
[1646543535539,0.00020488,39555.0,39550.0,0.17852478]
[1646543535739,0.00020488,39555.0,39551.0,0.380352]
[1646543536540,0.30850529,39560.0,39550.0,0.3]
[1646543536744,0.00020594,39555.0,39550.0,0.3]
[1646543536986,0.00020594,39555.0,39551.0,0.380352]
[1646543537789,0.30850529,39560.0,39550.0,0.3]
[1646543538186,0.1518503,39560.0,39551.0,0.380352]
[1646543538387,0.16314213,39558.0,39551.0,0.380352]
[1646543538587,0.1518503,39560.0,39551.0,0.380352]
[1646543538890,0.1518503,39560.0,39550.0,0.301]
[1646543539088,0.11172645,39560.0,39551.0,0.380352]
[1646543539290,0.11172645,39560.0,39550.0,0.001]
[1646543539488,0.3,39559.0,39550.0,0.001]
[1646543539688,0.11172645,39560.0,39550.0,0.001]
[1646543540290,0.17259075,39558.0,39553.0,0.19929938]
[1646543540489,0.17259075,39558.0,39555.0,0.380352]
[1646543540737,0.17259075,39558.0,39549.0,0.03721038]
[1646543540943,0.17259075,39558.0,39553.0,0.380352]
[1646543541339,0.17259075,39558.0,39554.0,0.380352]
[1646543541639,0.15818404,39556.0,39553.0,0.380352]
[1646543541843,0.15818404,39556.0,39552.0,0.001]
[1646543541844,0.030097,39554.0,39552.0,0.001]
[1646543542039,0.030097,39554.0,39549.0,0.03721038]
[1646543542236,0.3,39555.0,39549.0,0.03721038]
[1646543542438,0.16000679,39550.0,39549.0,0.03721038]
[1646543542638,0.15818404,39556.0,39549.0,0.03721038]
[1646543542639,0.3,39555.0,39549.0,0.03721038]
[1646543542838,0.00022727,39553.0,39549.0,0.03721038]
[1646543543638,0.3,39555.0,39549.0,0.03721038]
[1646543543839,0.380352,39555.0,39549.0,0.03721038]
[1646543544139,0.00021924,39553.0,39549.0,0.03721038]
[1646543544392,0.20792025,39551.0,39549.0,0.03721038]
[1646543545994,0.20792025,39551.0,39544.0,0.01264]
[1646543545995,0.680352,39550.0,39544.0,0.01264]
[1646543546195,0.20792025,39551.0,39544.0,0.01264]
[1646543546393,0.3,39555.0,39554.0,0.06571537]
[1646543546594,0.680352,39555.0,39554.0,0.06571537]
[1646543546998,0.84203409,39555.0,39554.0,0.06571537]
[1646543550239,0.99203409,39555.0,39554.0,0.06571537]
[1646543550440,0.99203409,39555.0,39544.0,0.01264]
[1646543550441,0.030097,39552.0,39544.0,0.01264]
[1646543550641,0.380352,39550.0,39544.0,0.01264]
[1646543551042,0.030097,39548.0,39544.0,0.01264]
[1646543551242,0.0506,39547.0,39539.0,0.2546]
[1646543551442,0.3506,39547.0,39534.0,0.03775929]
[1646543551886,0.3506,39547.0,39535.0,0.16327874]
[1646543552290,0.3506,39547.0,39534.0,0.03775929]
[1646543552490,0.21328552,39541.0,39534.0,0.03775929]
[1646543555190,0.21328552,39541.0,39535.0,0.21053683]
[1646543555191,0.42790231,39541.0,39535.0,0.21053683]
[1646543555391,0.42790231,39541.0,39534.0,0.03775929]
[1646543555392,0.21461679,39541.0,39534.0,0.03775929]
[1646543555638,0.00021973,39542.0,39534.0,0.03775929]
[1646543555843,0.002,39543.0,39534.0,0.03775929]
[1646543556039,0.00021973,39542.0,39534.0,0.03775929]
[1646543556839,0.00021973,39542.0,39537.0,0.20641141]
[1646543557139,0.00021974,39542.0,39537.0,0.20641141]
[1646543557840,0.00021974,39542.0,39534.0,0.03775929]
[1646543558239,0.20562531,39544.0,39534.0,0.03775929]
[1646543558440,0.00021978,39542.0,39534.0,0.03775929]
[1646543558843,0.17472095,39540.0,39534.0,0.19589175]
[1646543559041,0.00021978,39542.0,39534.0,0.19589175]
[1646543559487,0.00094124,39541.0,39534.0,0.19589175]
[1646543560089,0.00094124,39541.0,39540.0,0.380352]
[1646543561085,0.00094124,39541.0,39540.0,0.57609396]
[1646543562887,0.00094124,39541.0,39540.0,0.62609396]
[1646543563156,0.00094124,39541.0,39540.0,0.72609396]
[1646543565146,0.00120554,39541.0,39540.0,0.72609396]
[1646543565350,0.00120554,39541.0,39540.0,1.56029396]
[1646543565548,7.693e-05,39541.0,39540.0,1.56029396]
[1646543565747,7.693e-05,39541.0,39540.0,1.95489287]
[1646543565947,7.693e-05,39541.0,39540.0,1.98017287]
[1646543566346,7.693e-05,39541.0,39540.0,1.77912867]
[1646543566748,7.693e-05,39541.0,39540.0,1.91729183]
[1646543567196,7.693e-05,39541.0,39540.0,1.89038306]
[1646543567391,7.693e-05,39541.0,39540.0,2.14164875]
[1646543567593,7.693e-05,39541.0,39540.0,2.03039436]
[1646543567794,7.693e-05,39541.0,39540.0,2.14164875]
[1646543568595,7.693e-05,39541.0,39540.0,1.89038306]
[1646543569494,7.693e-05,39541.0,39540.0,2.14164875]
[1646543569696,7.693e-05,39541.0,39540.0,2.20486993]
[1646543569896,0.00020901,39542.0,39540.0,2.20486993]
[1646543570097,0.05862582,39553.0,39541.0,1.74404392]
[1646543570298,0.05862582,39553.0,39545.0,0.063222]
[1646543570504,0.05862582,39553.0,39546.0,0.380352]
[1646543570739,0.05862582,39553.0,39547.0,0.1]
[1646543570941,0.05862582,39553.0,39548.0,0.380352]
[1646543571143,0.05862582,39553.0,39548.0,0.430352]
[1646543571341,0.05862582,39553.0,39549.0,0.59086108]
[1646543571543,0.00021912,39552.0,39550.0,0.380352]
[1646543571743,0.00021912,39552.0,39551.0,0.3]
[1646543571941,0.00021912,39552.0,39551.0,0.680352]
[1646543572541,0.05862582,39553.0,39551.0,0.680352]
[1646543572740,0.05862582,39553.0,39552.0,0.680352]
[1646543572741,0.05884569,39553.0,39552.0,0.680352]
[1646543572942,0.05884569,39553.0,39552.0,0.380352]
[1646543573340,0.05884569,39553.0,39552.0,0.680352]
[1646543573743,0.11172645,39560.0,39553.0,1.0]
[1646543573943,0.11172645,39560.0,39554.0,0.680352]
[1646543574143,0.11172645,39560.0,39555.0,0.0506]
[1646543574401,0.0037,39568.0,39563.0,0.380352]
[1646543574599,0.0037,39568.0,39564.0,0.3]
[1646543574801,0.0037,39568.0,39565.0,0.380352]
[1646543575101,0.0037,39568.0,39565.0,0.680352]
[1646543575303,0.00392045,39568.0,39567.0,0.53124162]
[1646543576099,0.0037,39568.0,39567.0,0.53124162]
[1646543576300,0.0037,39568.0,39567.0,0.380352]
[1646543576510,0.0037,39568.0,39567.0,0.17124681]
[1646543582089,0.16984507,39568.0,39567.0,0.17124681]
[1646543583090,0.16984507,39568.0,39564.0,0.03748151]
[1646543583091,0.85011007,39568.0,39564.0,0.03748151]
[1646543583294,0.46984507,39568.0,39564.0,0.03748151]
[1646543583489,0.380265,39567.0,39564.0,0.03748151]
[1646543583688,0.46984507,39568.0,39564.0,0.03748151]
[1646543583689,0.3,39566.0,39564.0,0.03748151]
[1646543583890,0.20986405,39565.0,39564.0,0.03748151]
[1646543584091,0.50986405,39565.0,39564.0,0.03748151]
[1646543584490,0.20986405,39565.0,39564.0,0.03748151]
[1646543584690,0.50986405,39565.0,39562.0,0.001]
[1646543585491,0.20986405,39565.0,39551.0,0.380265]
[1646543585749,0.3,39564.0,39557.0,0.380265]
[1646543585952,0.20986405,39565.0,39557.0,0.380265]
[1646543585953,0.21008376,39565.0,39557.0,0.380265]
[1646543586551,0.21008376,39565.0,39550.0,0.4335]
[1646543586749,0.21008376,39565.0,39551.0,0.380265]
[1646543586750,0.3,39564.0,39551.0,0.380265]
[1646543587351,0.00021973,39559.0,39551.0,0.380265]
[1646543587751,0.00021973,39559.0,39555.0,0.16563673]
[1646543587951,0.00021973,39559.0,39556.0,0.380265]
[1646543588153,0.3,39564.0,39556.0,0.380265]
[1646543588455,0.00021973,39559.0,39556.0,0.380265]
[1646543589491,0.3,39564.0,39556.0,0.380265]
[1646543589691,0.00021973,39559.0,39555.0,0.002]
[1646543589891,0.00021973,39559.0,39556.0,0.380265]
[1646543590091,0.00021973,39559.0,39555.0,0.002]
[1646543590492,0.15,39562.0,39550.0,0.2835]
[1646543590692,0.15,39562.0,39549.0,0.246]
[1646543590693,0.3,39561.0,39549.0,0.246]
[1646543590892,0.19047073,39555.0,39549.0,0.246]
[1646543591095,0.19047073,39555.0,39548.0,0.380265]
[1646543592095,0.00021975,39553.0,39548.0,0.380265]
[1646543593142,0.19047073,39555.0,39547.0,0.01]
[1646543593341,0.00021975,39552.0,39548.0,0.380265]
[1646543594243,0.19047073,39555.0,39547.0,0.01]
[1646543594543,0.00021975,39552.0,39548.0,0.380265]
[1646543595343,0.001,39554.0,39548.0,0.380265]
[1646543595543,0.001,39554.0,39547.0,0.01]
[1646543595744,0.00021975,39552.0,39547.0,0.01]
[1646543596345,0.00021975,39552.0,39549.0,0.380265]
[1646543596544,0.19047073,39555.0,39548.0,0.380265]
[1646543596744,0.19035726,39555.0,39547.0,0.01]
[1646543596993,0.00021975,39551.0,39548.0,0.380265]
[1646543597788,0.19035726,39555.0,39547.0,0.01]
[1646543597986,0.00021975,39551.0,39547.0,0.01]
[1646543598187,0.00021975,39551.0,39548.0,0.380362]
[1646543598991,0.19035726,39555.0,39548.0,0.380362]
[1646543599187,0.001,39553.0,39547.0,0.01]
[1646543599389,0.00021975,39551.0,39548.0,0.380362]
[1646543600188,0.001,39553.0,39548.0,0.380362]
[1646543600390,0.00021975,39551.0,39548.0,0.380362]
[1646543600846,0.47968,39568.0,39551.0,5.854e-05]
[1646543600847,0.01264,39563.0,39551.0,5.854e-05]
[1646543601046,0.3,39567.0,39552.0,0.380362]
[1646543601247,0.4544,39568.0,39553.0,0.22442455]
[1646543601448,0.4544,39568.0,39554.0,0.380362]
[1646543601449,0.0037,39568.0,39554.0,0.380362]
[1646543601845,0.21778348,39568.0,39554.0,0.380362]
[1646543602247,0.18581546,39563.0,39556.0,0.16962322]
[1646543602447,0.18581546,39563.0,39557.0,0.380362]
[1646543602646,0.21778348,39568.0,39557.0,0.380362]
[1646543603650,0.0037,39568.0,39557.0,0.380362]
[1646543603850,0.0037,39568.0,39559.0,0.380362]
[1646543604052,0.0063,39569.0,39559.0,0.380362]
[1646543604053,9.318e-05,39564.0,39559.0,0.380362]
[1646543605092,0.18285339,39569.0,39559.0,0.380362]
[1646543605292,0.00023586,39563.0,39559.0,0.380362]
[1646543605893,0.00023586,39563.0,39561.0,0.15876491]
[1646543606093,0.00023586,39563.0,39558.0,0.0536]
[1646543606094,0.00023586,39563.0,39562.0,0.380362]
[1646543606295,0.18285339,39569.0,39562.0,0.380362]
[1646543606494,0.28204905,39559.0,39558.0,0.430962]
[1646543607094,0.28204905,39559.0,39558.0,0.58587662]
[1646543611245,0.28204905,39559.0,39558.0,1.54475662]
[1646543611444,0.24513589,39559.0,39558.0,1.6559604]
[1646543611905,0.24513589,39559.0,39558.0,0.8723604]
[1646543612908,0.24513589,39559.0,39558.0,0.8470804]
[1646543614116,0.24513589,39559.0,39558.0,0.380362]
[1646543614312,0.24513589,39559.0,39557.0,0.380362]
[1646543614510,0.24513589,39559.0,39556.0,0.03810522]
[1646543614713,0.24513589,39559.0,39557.0,0.380362]
[1646543617448,0.24513589,39559.0,39558.0,0.17454168]
[1646543617650,0.24513589,39559.0,39558.0,0.55490368]
[1646543617849,0.24513589,39559.0,39558.0,0.85490368]
[1646543618050,0.22698664,39559.0,39558.0,0.85490368]
[1646543618251,0.22698664,39559.0,39558.0,1.08078368]
[1646543618550,0.15198664,39559.0,39558.0,1.86438368]
[1646543618949,0.15198664,39559.0,39558.0,1.97558184]
[1646543619399,0.15198664,39559.0,39558.0,1.19198184]
[1646543620400,0.15198664,39559.0,39558.0,1.16670184]
[1646543623644,0.15198664,39559.0,39558.0,1.00490368]
[1646543623845,0.15198664,39559.0,39558.0,0.530362]
[1646543624044,0.15198664,39559.0,39558.0,0.480362]
[1646543624244,0.15198664,39559.0,39558.0,0.380362]
[1646543624744,0.15198664,39559.0,39558.0,0.55549232]
[1646543626343,0.15198664,39559.0,39558.0,0.380362]
[1646543628492,0.36283523,39559.0,39558.0,0.380362]
[1646543630846,0.15198664,39559.0,39558.0,0.380362]
[1646543635911,0.15198664,39559.0,39554.0,0.01463]
[1646543635912,0.83234864,39559.0,39554.0,0.002]
[1646543636115,0.694191,39555.0,39554.0,0.002]
[1646543636312,0.75302673,39555.0,39554.0,0.002]
[1646543636509,0.25943573,39555.0,39554.0,0.00076746]
[1646543636709,0.25943573,39555.0,39551.0,5.854e-05]
[1646543636710,0.63979773,39555.0,39551.0,5.854e-05]
[1646543636908,0.16043428,39553.0,39551.0,5.854e-05]
[1646543638948,0.380362,39552.0,39551.0,5.854e-05]
[1646543639151,0.16043428,39553.0,39551.0,5.854e-05]
[1646543640350,0.30020631,39554.0,39551.0,5.854e-05]
[1646543640554,0.00020631,39554.0,39551.0,5.854e-05]
[1646543641253,0.005,39558.0,39551.0,5.854e-05]
[1646543641453,0.005,39558.0,39552.0,0.380362]
[1646543641454,0.00020631,39554.0,39552.0,0.380362]
[1646543641657,0.005,39558.0,39555.0,2.766e-05]
[1646543642721,0.15198664,39559.0,39558.0,0.15108012]
[1646543642919,0.15198664,39559.0,39558.0,0.53144212]
[1646543646349,0.15198664,39559.0,39558.0,0.59464412]
[1646543647146,0.15198664,39559.0,39558.0,0.53144212]
[1646543648650,0.15198664,39559.0,39558.0,0.380362]
[1646543648852,0.15198664,39559.0,39556.0,0.380362]
[1646543649895,0.15220963,39559.0,39556.0,0.380362]
[1646543650896,0.15198664,39559.0,39556.0,0.380362]
[1646543651099,0.15220633,39559.0,39556.0,0.380362]
[1646543651696,0.15220633,39559.0,39555.0,2.766e-05]
[1646543651901,0.3,39558.0,39555.0,2.766e-05]
[1646543652097,0.15198664,39559.0,39555.0,2.766e-05]
[1646543652299,0.3,39558.0,39555.0,2.766e-05]
[1646543652900,0.15220634,39559.0,39556.0,0.380362]
[1646543653163,0.15198664,39559.0,39556.0,0.380362]
[1646543653553,0.15220633,39559.0,39556.0,0.380362]
[1646543654353,0.15198664,39559.0,39556.0,0.380362]
[1646543654753,0.15220656,39559.0,39555.0,2.766e-05]
[1646543655355,0.15220656,39559.0,39556.0,0.380362]
[1646543655554,0.15198664,39559.0,39556.0,0.380362]
[1646543655955,0.15220656,39559.0,39556.0,0.380362]
[1646543656759,0.15198664,39559.0,39556.0,0.380362]
[1646543657190,0.15220656,39559.0,39555.0,2.766e-05]
[1646543657592,0.15220656,39559.0,39556.0,0.380362]
[1646543657791,0.15220656,39559.0,39555.0,2.766e-05]
[1646543658091,0.15198664,39559.0,39555.0,2.766e-05]
[1646543658291,0.15220654,39559.0,39555.0,2.766e-05]
[1646543659291,0.15198664,39559.0,39555.0,2.766e-05]
[1646543659491,0.15220654,39559.0,39555.0,2.766e-05]
[1646543659791,0.00168181,39558.0,39555.0,2.766e-05]
[1646543660194,0.52265181,39558.0,39555.0,2.766e-05]
[1646543660396,0.380362,39557.0,39555.0,2.766e-05]
[1646543661453,0.52287172,39558.0,39555.0,2.766e-05]
[1646543661651,0.52265181,39558.0,39555.0,2.766e-05]
[1646543661848,0.52287227,39558.0,39555.0,2.766e-05]
[1646543662248,0.15,39557.0,39555.0,2.766e-05]
[1646543662548,0.3,39556.0,39555.0,2.766e-05]
[1646543662747,0.15,39557.0,39555.0,2.766e-05]
[1646543663149,0.15022046,39557.0,39555.0,2.766e-05]
[1646543664150,0.30167783,39556.0,39555.0,2.766e-05]
[1646543665793,0.00167783,39556.0,39555.0,2.766e-05]
[1646543670449,0.00158389,39556.0,39555.0,2.766e-05]
[1646543671046,0.00158389,39556.0,39555.0,0.17417475]
[1646543671248,0.00158389,39556.0,39555.0,0.55453675]
[1646543671650,0.00158389,39556.0,39555.0,2.766e-05]
[1646543696399,0.38194589,39556.0,39555.0,2.766e-05]
[1646543696799,0.00158389,39556.0,39555.0,2.766e-05]
[1646543696999,0.38194589,39556.0,39555.0,2.766e-05]
[1646543697200,0.00158389,39556.0,39555.0,2.766e-05]
[1646543709051,0.07197869,39556.0,39555.0,2.766e-05]
[1646543709250,0.14237349,39556.0,39555.0,2.766e-05]
[1646543719306,0.61494311,39556.0,39555.0,2.766e-05]